[Event "Early-Titled-Tuesday-Blitz-January-23-2024"]
[Site "Chess.com"]
[Date "2024.01.23"]
[Round "5"]
[White "Sebastian"]
[Black "Meri-Arabidze"]
[Result "1-0"]
[WhiteElo "2996"]
[BlackElo "2713"]
[TimeControl "180+1"]
[EndTime "8:53:13 PST"]
[Termination "Sebastian won by resignation"]

1. e4 {[%clk 0:03:00.9]} 1... c5 {[%clk 0:02:59.9]} 2. Nf3 {[%clk 0:02:55.6]}
2... e6 {[%clk 0:03:00.3]} 3. d4 {[%clk 0:02:55.7]} 3... cxd4 {[%clk 0:03:01.2]}
4. Nxd4 {[%clk 0:02:55.9]} 4... Nc6 {[%clk 0:03:01.8]} 5. Nc3 {[%clk 0:02:55.3]}
5... a6 {[%clk 0:03:02.2]} 6. Qd3 {[%clk 0:02:51.1]} 6... Nge7 {[%clk
0:02:52.6]} 7. Nb3 {[%clk 0:02:32.3]} 7... d5 {[%clk 0:02:48.7]} 8. exd5 {[%clk
0:02:32.2]} 8... Nxd5 {[%clk 0:02:48.6]} 9. Nxd5 {[%clk 0:02:32]} 9... Qxd5
{[%clk 0:02:49.3]} 10. Qxd5 {[%clk 0:02:32]} 10... exd5 {[%clk 0:02:50.2]} 11.
Be3 {[%clk 0:02:31.5]} 11... Be6 {[%clk 0:02:36.8]} 12. c3 {[%clk 0:02:29.7]}
12... Be7 {[%clk 0:02:36.3]} 13. Be2 {[%clk 0:02:18.7]} 13... O-O {[%clk
0:02:36.2]} 14. O-O {[%clk 0:02:18.6]} 14... Ne5 {[%clk 0:02:23.6]} 15. Bc5
{[%clk 0:02:12.5]} 15... Rfe8 {[%clk 0:02:17.4]} 16. Bxe7 {[%clk 0:02:12.1]}
16... Rxe7 {[%clk 0:02:18.3]} 17. Nd4 {[%clk 0:02:08.9]} 17... Nc4 {[%clk
0:02:18.1]} 18. Bxc4 {[%clk 0:01:40.5]} 18... dxc4 {[%clk 0:02:19]} 19. Rfd1
{[%clk 0:01:40.3]} 19... Rae8 {[%clk 0:02:14.8]} 20. f3 {[%clk 0:01:40]} 20...
g6 {[%clk 0:02:14.2]} 21. h4 {[%clk 0:01:38.2]} 21... Kg7 {[%clk 0:02:12.3]} 22.
Kf2 {[%clk 0:01:38.1]} 22... h5 {[%clk 0:02:08.8]} 23. Rd2 {[%clk 0:01:36.3]}
23... Bd5 {[%clk 0:01:55.3]} 24. Nc2 {[%clk 0:01:25.9]} 24... Bc6 {[%clk
0:01:49]} 25. Re1 {[%clk 0:01:20.8]} 25... Rxe1 {[%clk 0:01:45.1]} 26. Nxe1
{[%clk 0:01:21.7]} 26... f6 {[%clk 0:01:37.1]} 27. Nc2 {[%clk 0:01:19.7]} 27...
g5 {[%clk 0:01:37]} 28. Ne3 {[%clk 0:01:18.3]} 28... gxh4 {[%clk 0:01:08.6]} 29.
Nxc4 {[%clk 0:01:16.7]} 29... Kg6 {[%clk 0:01:09]} 30. Rd4 {[%clk 0:01:11.3]}
30... Kg5 {[%clk 0:01:08.8]} 31. Ne3 {[%clk 0:01:02.4]} 31... Re5 {[%clk
0:01:02.3]} 32. f4+ {[%clk 0:01:01.9]} 1-0

[Event "Early-Titled-Tuesday-Blitz-January-23-2024"]
[Site "Chess.com"]
[Date "2024.01.23"]
[Round "5"]
[White "Chempiblinka"]
[Black "malakismayil"]
[Result "0-1"]
[WhiteElo "2312"]
[BlackElo "2565"]
[TimeControl "180+1"]
[EndTime "8:53:17 PST"]
[Termination "malakismayil won on time"]

1. Nf3 {[%clk 0:03:00.9]} 1... Nf6 {[%clk 0:02:55.9]} 2. g3 {[%clk 0:03:01.8]}
2... d5 {[%clk 0:02:56.2]} 3. Bg2 {[%clk 0:03:02]} 3... e6 {[%clk 0:02:57.1]} 4.
c4 {[%clk 0:03:02]} 4... Be7 {[%clk 0:02:58]} 5. O-O {[%clk 0:03:01.8]} 5... O-O
{[%clk 0:02:58.9]} 6. d4 {[%clk 0:03:02.1]} 6... dxc4 {[%clk 0:02:59]} 7. Qc2
{[%clk 0:03:01.1]} 7... c5 {[%clk 0:02:59]} 8. Rd1 {[%clk 0:02:55.3]} 8... Qb6
{[%clk 0:02:53.4]} 9. e3 {[%clk 0:02:38.2]} 9... Nc6 {[%clk 0:02:45.4]} 10. dxc5
{[%clk 0:02:34.8]} 10... Bxc5 {[%clk 0:02:46.3]} 11. Nc3 {[%clk 0:02:34.6]}
11... Nb4 {[%clk 0:02:43.1]} 12. Qe2 {[%clk 0:02:29.2]} 12... Nd3 {[%clk
0:02:34.4]} 13. Na4 {[%clk 0:02:25.6]} 13... Qc7 {[%clk 0:02:31.7]} 14. Nxc5
{[%clk 0:02:25.4]} 14... Qxc5 {[%clk 0:02:32.6]} 15. b3 {[%clk 0:02:21.9]} 15...
b5 {[%clk 0:02:31.3]} 16. a4 {[%clk 0:02:13.8]} 16... Nd5 {[%clk 0:02:13.5]} 17.
Ba3 {[%clk 0:01:29.2]} 17... b4 {[%clk 0:01:57.2]} 18. bxc4 {[%clk 0:01:28.8]}
18... Nc3 {[%clk 0:01:55.3]} 19. Qxd3 {[%clk 0:01:26.9]} 19... Nxd1 {[%clk
0:01:54.9]} 20. Bxb4 {[%clk 0:00:24.3]} 20... Qxb4 {[%clk 0:01:51.9]} 21. Ng5
{[%clk 0:00:25]} 21... f5 {[%clk 0:01:39.3]} 22. Bxa8 {[%clk 0:00:19.9]} 22...
Nxf2 {[%clk 0:01:37.4]} 0-1

[Event "Early-Titled-Tuesday-Blitz-January-23-2024"]
[Site "Chess.com"]
[Date "2024.01.23"]
[Round "5"]
[White "AradNazari"]
[Black "FMCASTE"]
[Result "0-1"]
[WhiteElo "2598"]
[BlackElo "2499"]
[TimeControl "180+1"]
[EndTime "8:53:19 PST"]
[Termination "FMCASTE won by resignation"]

1. b4 {[%clk 0:02:20.2]} 1... g6 {[%clk 0:03:00.9]} 2. Bb2 {[%clk 0:02:18.7]}
2... Nf6 {[%clk 0:03:01.8]} 3. h4 {[%clk 0:02:18.2]} 3... h5 {[%clk 0:03:00.5]}
4. d3 {[%clk 0:02:11.1]} 4... d5 {[%clk 0:03:00.9]} 5. Nd2 {[%clk 0:02:11.4]}
5... a5 {[%clk 0:03:00.5]} 6. b5 {[%clk 0:02:08.8]} 6... c6 {[%clk 0:03:00.4]}
7. c4 {[%clk 0:02:06.4]} 7... Bg7 {[%clk 0:02:58.7]} 8. Ngf3 {[%clk 0:01:47.8]}
8... a4 {[%clk 0:02:57.7]} 9. a3 {[%clk 0:01:40.9]} 9... O-O {[%clk 0:02:56.9]}
10. Rb1 {[%clk 0:01:22.2]} 10... cxb5 {[%clk 0:02:55.2]} 11. cxb5 {[%clk
0:01:21.1]} 11... Nbd7 {[%clk 0:02:46.5]} 12. g3 {[%clk 0:01:17]} 12... Nc5
{[%clk 0:02:45.2]} 13. Bd4 {[%clk 0:01:14.8]} 13... b6 {[%clk 0:02:42.6]} 14.
Bg2 {[%clk 0:01:13]} 14... Bb7 {[%clk 0:02:41.4]} 15. O-O {[%clk 0:01:12.6]}
15... Re8 {[%clk 0:02:40.6]} 16. Ne5 {[%clk 0:01:07.3]} 16... Nfd7 {[%clk
0:02:34.5]} 17. Ndf3 {[%clk 0:01:06.4]} 17... Nxe5 {[%clk 0:02:32.8]} 18. Bxe5
{[%clk 0:01:06.9]} 18... f6 {[%clk 0:02:30.7]} 19. Bc3 {[%clk 0:01:02.4]} 19...
e5 {[%clk 0:02:31.3]} 20. d4 {[%clk 0:00:56.9]} 20... Ne4 {[%clk 0:02:31]} 21.
Bb4 {[%clk 0:00:56.3]} 21... Qd7 {[%clk 0:02:26.9]} 22. Qd3 {[%clk 0:00:52.3]}
22... Rad8 {[%clk 0:02:14.5]} 23. Rfd1 {[%clk 0:00:52.8]} 23... Qf5 {[%clk
0:02:11.4]} 24. Nd2 {[%clk 0:00:50.6]} 24... Qxf2+ {[%clk 0:02:04.4]} 25. Kh2
{[%clk 0:00:51.2]} 25... exd4 {[%clk 0:01:54.5]} 26. Nf1 {[%clk 0:00:40]} 26...
Nc3 {[%clk 0:01:45.9]} 27. Bxc3 {[%clk 0:00:36.4]} 27... dxc3 {[%clk 0:01:45.9]}
28. Re1 {[%clk 0:00:30.9]} 28... d4 {[%clk 0:01:44.7]} 0-1

[Event "Early-Titled-Tuesday-Blitz-January-23-2024"]
[Site "Chess.com"]
[Date "2024.01.23"]
[Round "5"]
[White "NovozhilovSemen"]
[Black "Zgorl"]
[Result "1-0"]
[WhiteElo "2654"]
[BlackElo "2504"]
[TimeControl "180+1"]
[EndTime "8:53:25 PST"]
[Termination "NovozhilovSemen won by resignation"]

1. d4 {[%clk 0:03:00.9]} 1... Nf6 {[%clk 0:02:59.6]} 2. Nf3 {[%clk 0:03:01]}
2... g6 {[%clk 0:02:59.3]} 3. Nc3 {[%clk 0:03:00.6]} 3... d5 {[%clk 0:02:58.9]}
4. Bf4 {[%clk 0:03:00.6]} 4... Bg7 {[%clk 0:02:58.7]} 5. Nb5 {[%clk 0:03:00]}
5... Na6 {[%clk 0:02:58.5]} 6. e3 {[%clk 0:03:00.3]} 6... O-O {[%clk 0:02:57.8]}
7. Be2 {[%clk 0:02:59.8]} 7... c6 {[%clk 0:02:57.6]} 8. Nc3 {[%clk 0:02:59.7]}
8... Qb6 {[%clk 0:02:57.7]} 9. a3 {[%clk 0:02:58.5]} 9... c5 {[%clk 0:02:56.5]}
10. Na4 {[%clk 0:02:55.8]} 10... Qa5+ {[%clk 0:02:49.9]} 11. c3 {[%clk
0:02:55.4]} 11... c4 {[%clk 0:02:42.6]} 12. b4 {[%clk 0:02:53.5]} 12... cxb3
{[%clk 0:02:37.4]} 13. Qxb3 {[%clk 0:02:52.9]} 13... Bd7 {[%clk 0:02:23.7]} 14.
Nb2 {[%clk 0:02:48.3]} 14... Rfc8 {[%clk 0:02:18.2]} 15. O-O {[%clk 0:02:42.6]}
15... b6 {[%clk 0:01:58.3]} 16. Rac1 {[%clk 0:02:38.7]} 16... b5 {[%clk
0:01:20.1]} 17. Ne5 {[%clk 0:02:36]} 17... Be8 {[%clk 0:01:19.3]} 18. Nbd3
{[%clk 0:02:35.8]} 18... Nd7 {[%clk 0:01:09.6]} 19. Qxd5 {[%clk 0:02:33.4]}
19... e6 {[%clk 0:01:01.8]} 20. Qb3 {[%clk 0:02:32.6]} 20... Nb6 {[%clk
0:00:59.2]} 21. Bf3 {[%clk 0:02:30.3]} 21... Rab8 {[%clk 0:00:55.4]} 22. Nb4
{[%clk 0:02:21.1]} 22... Nc4 {[%clk 0:00:46.3]} 23. Nec6 {[%clk 0:02:07.4]}
23... Bxc6 {[%clk 0:00:40.6]} 24. Nxc6 {[%clk 0:02:08.3]} 24... Qxa3 {[%clk
0:00:39.8]} 25. Qxa3 {[%clk 0:02:05.6]} 25... Nxa3 {[%clk 0:00:40.7]} 26. Nxb8
{[%clk 0:02:06]} 26... Nxb8 {[%clk 0:00:40.7]} 27. Bb7 {[%clk 0:02:06.2]} 27...
Re8 {[%clk 0:00:38]} 28. Ra1 {[%clk 0:02:05]} 28... Bf8 {[%clk 0:00:37.8]} 29.
Rfd1 {[%clk 0:01:59.3]} 29... a5 {[%clk 0:00:31.8]} 30. d5 {[%clk 0:01:49.7]}
30... exd5 {[%clk 0:00:28.9]} 31. Bxd5 {[%clk 0:01:46.5]} 31... Rc8 {[%clk
0:00:19.7]} 32. h4 {[%clk 0:01:43.6]} 32... Nc6 {[%clk 0:00:14.4]} 33. Bxc6
{[%clk 0:01:41.2]} 33... Rxc6 {[%clk 0:00:15.3]} 34. Rd8 {[%clk 0:01:41.4]} 1-0

[Event "Early-Titled-Tuesday-Blitz-January-23-2024"]
[Site "Chess.com"]
[Date "2024.01.23"]
[Round "5"]
[White "GatoRojo150"]
[Black "esrosenberg"]
[Result "1-0"]
[WhiteElo "2592"]
[BlackElo "2347"]
[TimeControl "180+1"]
[EndTime "8:53:37 PST"]
[Termination "GatoRojo150 won by resignation"]

1. e4 {[%clk 0:03:00.9]} 1... g6 {[%clk 0:02:59.2]} 2. Nf3 {[%clk 0:03:00.8]}
2... Bg7 {[%clk 0:02:59.4]} 3. Nc3 {[%clk 0:03:01.5]} 3... d6 {[%clk 0:02:58.6]}
4. d4 {[%clk 0:03:02]} 4... a6 {[%clk 0:02:57.9]} 5. Bc4 {[%clk 0:03:02.4]} 5...
b5 {[%clk 0:02:57.3]} 6. Bb3 {[%clk 0:03:03]} 6... Bb7 {[%clk 0:02:56.9]} 7. Ng5
{[%clk 0:03:03.6]} 7... Nh6 {[%clk 0:02:53.7]} 8. h4 {[%clk 0:02:55.6]} 8... e6
{[%clk 0:02:27.9]} 9. Bxe6 {[%clk 0:02:54.9]} 9... fxe6 {[%clk 0:02:25.5]} 10.
Nxe6 {[%clk 0:02:55.8]} 10... Qe7 {[%clk 0:02:19.1]} 11. Nd5 {[%clk 0:02:55.8]}
11... Bxd5 {[%clk 0:02:18.6]} 12. exd5 {[%clk 0:02:56.7]} 12... Nf7 {[%clk
0:01:58.1]} 13. O-O {[%clk 0:02:54.4]} 13... Bf6 {[%clk 0:01:55.3]} 14. Re1
{[%clk 0:02:52.7]} 14... Ra7 {[%clk 0:01:02.3]} 15. Nf4 {[%clk 0:02:41.7]} 15...
O-O {[%clk 0:00:56.5]} 16. Rxe7 {[%clk 0:02:40.9]} 16... Bxe7 {[%clk 0:00:57.4]}
17. Ne6 {[%clk 0:02:41.4]} 17... Rc8 {[%clk 0:00:55.1]} 18. Bg5 {[%clk 0:02:41]}
18... Nxg5 {[%clk 0:00:54.7]} 19. hxg5 {[%clk 0:02:41.9]} 19... c6 {[%clk
0:00:51.9]} 20. Qf3 {[%clk 0:02:41]} 20... cxd5 {[%clk 0:00:50.5]} 21. Qxd5
{[%clk 0:02:41.9]} 21... Kh8 {[%clk 0:00:49.4]} 22. c3 {[%clk 0:02:37.2]} 22...
Nd7 {[%clk 0:00:42.9]} 23. Re1 {[%clk 0:02:35]} 23... Nf8 {[%clk 0:00:43.1]} 24.
g3 {[%clk 0:02:17]} 24... Nxe6 {[%clk 0:00:39.1]} 25. Rxe6 {[%clk 0:02:17.9]}
25... Rf8 {[%clk 0:00:32.6]} 26. Qe4 {[%clk 0:02:16.5]} 26... Bxg5 {[%clk
0:00:31.5]} 27. Rxd6 {[%clk 0:02:14.4]} 27... Raf7 {[%clk 0:00:28.2]} 28. f4
{[%clk 0:02:10]} 28... Bf6 {[%clk 0:00:26.7]} 29. Rxa6 {[%clk 0:02:08.9]} 29...
Bg7 {[%clk 0:00:26.9]} 30. Ra8 {[%clk 0:02:08.6]} 30... Rxa8 {[%clk 0:00:25.5]}
31. Qxa8+ {[%clk 0:02:09.5]} 31... Rf8 {[%clk 0:00:26.1]} 32. Qb7 {[%clk
0:02:09.2]} 32... b4 {[%clk 0:00:22.5]} 33. Qxb4 {[%clk 0:02:08.9]} 33... Re8
{[%clk 0:00:21.7]} 34. Kf2 {[%clk 0:02:08.2]} 34... h5 {[%clk 0:00:20.7]} 35.
Qb5 {[%clk 0:02:07.3]} 35... Ra8 {[%clk 0:00:17.6]} 36. a4 {[%clk 0:02:04.9]}
36... Kh7 {[%clk 0:00:18.1]} 37. a5 {[%clk 0:02:04.6]} 37... h4 {[%clk
0:00:18.1]} 38. gxh4 {[%clk 0:02:04.3]} 38... Rf8 {[%clk 0:00:18.8]} 39. Kg3
{[%clk 0:02:02]} 39... Bh6 {[%clk 0:00:19.3]} 40. Qe5 {[%clk 0:02:00.3]} 40...
Rf5 {[%clk 0:00:19.4]} 41. Qe7+ {[%clk 0:01:59.7]} 41... Kg8 {[%clk 0:00:18.4]}
42. Qe8+ {[%clk 0:01:58.9]} 42... Kh7 {[%clk 0:00:17.5]} 43. Qd7+ {[%clk
0:01:56.3]} 43... Kg8 {[%clk 0:00:17.2]} 44. Qc8+ {[%clk 0:01:56.4]} 44... Kh7
{[%clk 0:00:17.1]} 45. Qb7+ {[%clk 0:01:56.7]} 45... Kg8 {[%clk 0:00:16.9]} 46.
Qb8+ {[%clk 0:01:57.1]} 46... Kh7 {[%clk 0:00:16.9]} 47. a6 {[%clk 0:01:57.6]}
47... Bxf4+ {[%clk 0:00:12.8]} 48. Qxf4 {[%clk 0:01:58.5]} 1-0

[Event "Early-Titled-Tuesday-Blitz-January-23-2024"]
[Site "Chess.com"]
[Date "2024.01.23"]
[Round "5"]
[White "Ali_rastbod"]
[Black "mortngabriel"]
[Result "0-1"]
[WhiteElo "2703"]
[BlackElo "2530"]
[TimeControl "180+1"]
[EndTime "8:53:44 PST"]
[Termination "mortngabriel won by resignation"]

1. e4 {[%clk 0:02:52.8]} 1... c5 {[%clk 0:02:59.7]} 2. Nf3 {[%clk 0:02:52.4]}
2... Nc6 {[%clk 0:02:56.8]} 3. Bb5 {[%clk 0:02:52]} 3... Nf6 {[%clk 0:02:53.2]}
4. e5 {[%clk 0:02:48.4]} 4... Nd5 {[%clk 0:02:52.8]} 5. Nc3 {[%clk 0:02:48.3]}
5... Nc7 {[%clk 0:02:53.1]} 6. Bxc6 {[%clk 0:02:48.5]} 6... dxc6 {[%clk
0:02:54]} 7. O-O {[%clk 0:02:48.8]} 7... Bg4 {[%clk 0:02:54.1]} 8. h3 {[%clk
0:02:48.1]} 8... Bh5 {[%clk 0:02:54.3]} 9. Re1 {[%clk 0:02:43.6]} 9... Qd7
{[%clk 0:02:53.9]} 10. d3 {[%clk 0:02:39.9]} 10... Ne6 {[%clk 0:02:28.8]} 11.
Ne4 {[%clk 0:02:27.5]} 11... Nd4 {[%clk 0:02:14.9]} 12. Ned2 {[%clk 0:01:23.6]}
12... O-O-O {[%clk 0:02:08.8]} 13. Re4 {[%clk 0:01:09.9]} 13... f5 {[%clk
0:01:46.2]} 14. Re3 {[%clk 0:00:57]} 14... g5 {[%clk 0:01:38.2]} 15. c3 {[%clk
0:00:50.1]} 15... Ne6 {[%clk 0:01:29.4]} 16. Nf1 {[%clk 0:00:35.8]} 16... f4
{[%clk 0:01:26.4]} 17. Re1 {[%clk 0:00:35.1]} 17... Qxd3 {[%clk 0:01:24.4]} 18.
Qxd3 {[%clk 0:00:34.9]} 18... Rxd3 {[%clk 0:01:25.3]} 19. N1h2 {[%clk
0:00:31.8]} 19... Bg7 {[%clk 0:01:24.2]} 20. a4 {[%clk 0:00:21.9]} 20... Rhd8
{[%clk 0:01:23]} 21. b3 {[%clk 0:00:20.1]} 21... Rxc3 {[%clk 0:01:19.8]} 22. Ba3
{[%clk 0:00:20.4]} 22... Rxb3 {[%clk 0:01:19.1]} 23. Reb1 {[%clk 0:00:19.5]}
23... Rxb1+ {[%clk 0:01:14.3]} 24. Rxb1 {[%clk 0:00:20.4]} 24... Rd3 {[%clk
0:01:14.5]} 25. Bb2 {[%clk 0:00:19.4]} 25... Rb3 {[%clk 0:01:14.5]} 26. Nd2
{[%clk 0:00:19.1]} 26... Rb4 {[%clk 0:01:14.4]} 27. Nhf1 {[%clk 0:00:17.6]}
27... Bg6 {[%clk 0:01:13.8]} 0-1

[Event "Early-Titled-Tuesday-Blitz-January-23-2024"]
[Site "Chess.com"]
[Date "2024.01.23"]
[Round "5"]
[White "kibromNNN"]
[Black "KanalSzachowy"]
[Result "0-1"]
[WhiteElo "1647"]
[BlackElo "2339"]
[TimeControl "180+1"]
[EndTime "8:53:49 PST"]
[Termination "KanalSzachowy won on time"]

1. c4 {[%clk 0:02:56.2]} 1... e5 {[%clk 0:02:58.7]} 2. Nc3 {[%clk 0:02:53.9]}
2... Nf6 {[%clk 0:02:59]} 3. g3 {[%clk 0:02:51.4]} 3... Bb4 {[%clk 0:02:56]} 4.
Bg2 {[%clk 0:02:49.3]} 4... Bxc3 {[%clk 0:02:50.4]} 5. bxc3 {[%clk 0:02:43.7]}
5... O-O {[%clk 0:02:51]} 6. d3 {[%clk 0:02:40.7]} 6... d6 {[%clk 0:02:48.8]} 7.
e3 {[%clk 0:02:34.3]} 7... Nbd7 {[%clk 0:02:40.6]} 8. Rb1 {[%clk 0:02:21.7]}
8... Nc5 {[%clk 0:02:35.9]} 9. Ne2 {[%clk 0:02:13.8]} 9... e4 {[%clk 0:02:34.3]}
10. dxe4 {[%clk 0:02:03.8]} 10... Ncxe4 {[%clk 0:02:33.8]} 11. O-O {[%clk
0:01:58]} 11... b6 {[%clk 0:02:33.2]} 12. Nd4 {[%clk 0:01:51.5]} 12... Bb7
{[%clk 0:02:32.7]} 13. Qc2 {[%clk 0:01:47.4]} 13... Re8 {[%clk 0:02:22.1]} 14.
Rd1 {[%clk 0:01:42.7]} 14... Nc5 {[%clk 0:02:20]} 15. Qf5 {[%clk 0:01:23.4]}
15... Nce4 {[%clk 0:01:55.8]} 16. Bb2 {[%clk 0:01:12.6]} 16... c5 {[%clk
0:01:52.2]} 17. Nb5 {[%clk 0:01:09.9]} 17... Bc8 {[%clk 0:01:47.7]} 18. Qf4
{[%clk 0:01:04]} 18... g5 {[%clk 0:01:43]} 19. Bxe4 {[%clk 0:00:47.9]} 19...
gxf4 {[%clk 0:01:41.9]} 20. Bxa8 {[%clk 0:00:46.4]} 20... fxe3 {[%clk
0:01:35.4]} 21. Nxd6 {[%clk 0:00:37.2]} 21... exf2+ {[%clk 0:01:33.1]} 22. Kxf2
{[%clk 0:00:33.6]} 22... Bg4 {[%clk 0:01:33.4]} 23. Rd2 {[%clk 0:00:30.2]} 23...
Qxa8 {[%clk 0:01:32.5]} 24. Nxe8 {[%clk 0:00:28]} 24... Ne4+ {[%clk 0:01:31.3]}
25. Ke3 {[%clk 0:00:22.2]} 25... Qxe8 {[%clk 0:01:29.9]} 26. Rd5 {[%clk
0:00:03]} 26... Nxc3+ {[%clk 0:01:28.9]} 0-1

[Event "Early-Titled-Tuesday-Blitz-January-23-2024"]
[Site "Chess.com"]
[Date "2024.01.23"]
[Round "5"]
[White "SnekkerAndersen"]
[Black "rionelG"]
[Result "1-0"]
[WhiteElo "2631"]
[BlackElo "2315"]
[TimeControl "180+1"]
[EndTime "8:53:50 PST"]
[Termination "SnekkerAndersen won by resignation"]

1. d4 {[%clk 0:02:59.6]} 1... d5 {[%clk 0:02:59.7]} 2. c4 {[%clk 0:02:59.6]}
2... e6 {[%clk 0:03:00.2]} 3. Nf3 {[%clk 0:02:59.1]} 3... Nf6 {[%clk 0:02:57]}
4. Nc3 {[%clk 0:02:32.1]} 4... c6 {[%clk 0:02:53.5]} 5. e3 {[%clk 0:01:58.9]}
5... Nbd7 {[%clk 0:02:51.9]} 6. Bd3 {[%clk 0:01:59.2]} 6... dxc4 {[%clk
0:02:51.9]} 7. Bxc4 {[%clk 0:01:59.3]} 7... b5 {[%clk 0:02:52.8]} 8. Bb3 {[%clk
0:01:59.8]} 8... Bb7 {[%clk 0:02:53.3]} 9. O-O {[%clk 0:02:00.5]} 9... Bd6
{[%clk 0:02:42]} 10. e4 {[%clk 0:01:57.7]} 10... e5 {[%clk 0:02:41.9]} 11. Bg5
{[%clk 0:01:56.8]} 11... Qe7 {[%clk 0:02:14.4]} 12. d5 {[%clk 0:01:55.3]} 12...
h6 {[%clk 0:02:00.9]} 13. dxc6 {[%clk 0:01:54]} 13... Bxc6 {[%clk 0:02:00.8]}
14. Nd5 {[%clk 0:01:50.9]} 14... Bxd5 {[%clk 0:01:57.2]} 15. Bxd5 {[%clk
0:01:51.8]} 15... Rb8 {[%clk 0:01:42.9]} 16. Bh4 {[%clk 0:01:51.6]} 16... O-O
{[%clk 0:01:36.8]} 17. Bg3 {[%clk 0:01:50.4]} 17... Nxd5 {[%clk 0:01:29.2]} 18.
exd5 {[%clk 0:01:49.5]} 18... Rfc8 {[%clk 0:01:22.6]} 19. Re1 {[%clk 0:01:49.1]}
19... Qf6 {[%clk 0:01:22.5]} 20. Nd2 {[%clk 0:01:48.8]} 20... a5 {[%clk
0:01:11]} 21. Ne4 {[%clk 0:01:47.9]} 21... Qe7 {[%clk 0:01:08.2]} 22. Qg4 {[%clk
0:01:46.2]} 22... Nf6 {[%clk 0:01:04.6]} 23. Nxf6+ {[%clk 0:01:44.5]} 23... Qxf6
{[%clk 0:01:05.5]} 24. Bh4 {[%clk 0:01:43.8]} 24... Qf4 {[%clk 0:00:58.6]} 25.
Qxf4 {[%clk 0:01:42.8]} 25... exf4 {[%clk 0:00:59.5]} 26. Be7 {[%clk 0:01:43.4]}
26... Bxe7 {[%clk 0:00:51.5]} 27. Rxe7 {[%clk 0:01:42]} 27... Rc2 {[%clk
0:00:50.7]} 28. Rd1 {[%clk 0:01:40.9]} 28... Rd8 {[%clk 0:00:50.9]} 29. h3
{[%clk 0:01:37.9]} 29... Rxb2 {[%clk 0:00:47.4]} 30. d6 {[%clk 0:01:37.3]} 30...
f3 {[%clk 0:00:44]} 31. d7 {[%clk 0:01:36.3]} 31... Kf8 {[%clk 0:00:43.5]} 32.
Re3 {[%clk 0:01:31.5]} 32... Re2 {[%clk 0:00:35.9]} 33. Rxf3 {[%clk 0:01:30.7]}
33... Re7 {[%clk 0:00:35.3]} 34. Rfd3 {[%clk 0:01:30.7]} 34... Re2 {[%clk
0:00:32]} 35. Rd5 {[%clk 0:01:28.2]} 35... a4 {[%clk 0:00:19.3]} 36. a3 {[%clk
0:01:27.5]} 36... Ree8 {[%clk 0:00:15.5]} 37. dxe8=Q+ {[%clk 0:01:26.8]} 1-0

[Event "Early-Titled-Tuesday-Blitz-January-23-2024"]
[Site "Chess.com"]
[Date "2024.01.23"]
[Round "5"]
[White "Alonmindlin"]
[Black "ViIIagra"]
[Result "0-1"]
[WhiteElo "2702"]
[BlackElo "2970"]
[TimeControl "180+1"]
[EndTime "8:53:51 PST"]
[Termination "ViIIagra won by resignation"]

1. d4 {[%clk 0:02:55.7]} 1... d6 {[%clk 0:02:59.7]} 2. e4 {[%clk 0:02:55.5]}
2... g6 {[%clk 0:02:59.6]} 3. Nc3 {[%clk 0:02:55.6]} 3... a6 {[%clk 0:02:59.6]}
4. g3 {[%clk 0:02:51.3]} 4... b5 {[%clk 0:02:59.5]} 5. Bg2 {[%clk 0:02:51.7]}
5... Bb7 {[%clk 0:02:59.8]} 6. Nge2 {[%clk 0:02:51.6]} 6... Bg7 {[%clk 0:02:59]}
7. O-O {[%clk 0:02:51.2]} 7... Nd7 {[%clk 0:02:58.9]} 8. h3 {[%clk 0:02:47.3]}
8... Ngf6 {[%clk 0:02:58.4]} 9. f4 {[%clk 0:02:46.9]} 9... Nb6 {[%clk
0:02:32.8]} 10. a4 {[%clk 0:02:34.9]} 10... b4 {[%clk 0:02:30.8]} 11. a5 {[%clk
0:02:31.9]} 11... bxc3 {[%clk 0:02:22.8]} 12. axb6 {[%clk 0:02:31.5]} 12... cxb2
{[%clk 0:02:22.5]} 13. Bxb2 {[%clk 0:02:25.2]} 13... Nxe4 {[%clk 0:02:19.4]} 14.
bxc7 {[%clk 0:01:37.1]} 14... Qxc7 {[%clk 0:02:17.2]} 15. Qd3 {[%clk 0:01:37.2]}
15... f5 {[%clk 0:02:15.1]} 16. Qb3 {[%clk 0:01:33.4]} 16... Rb8 {[%clk
0:02:08.7]} 17. d5 {[%clk 0:01:28]} 17... Bc8 {[%clk 0:00:59.9]} 18. Bxg7 {[%clk
0:01:06.4]} 18... Rxb3 {[%clk 0:00:59.4]} 19. cxb3 {[%clk 0:01:06.4]} 19... Rg8
{[%clk 0:00:58.4]} 20. Rfc1 {[%clk 0:01:06.4]} 20... Qb8 {[%clk 0:00:54.7]} 21.
Bb2 {[%clk 0:00:59.6]} 21... Kf7 {[%clk 0:00:53.5]} 22. Nd4 {[%clk 0:00:57.5]}
22... Bb7 {[%clk 0:00:51.4]} 23. Ne6 {[%clk 0:00:49.2]} 23... h6 {[%clk
0:00:43.2]} 24. Nc7 {[%clk 0:00:35.7]} 24... Rc8 {[%clk 0:00:34.7]} 0-1

[Event "Early-Titled-Tuesday-Blitz-January-23-2024"]
[Site "Chess.com"]
[Date "2024.01.23"]
[Round "5"]
[White "Actuary44"]
[Black "ferdipy"]
[Result "1-0"]
[WhiteElo "2514"]
[BlackElo "2293"]
[TimeControl "180+1"]
[EndTime "8:53:54 PST"]
[Termination "Actuary44 won by resignation"]

1. e4 {[%clk 0:03:00.9]} 1... c5 {[%clk 0:03:00.3]} 2. d4 {[%clk 0:03:01]} 2...
cxd4 {[%clk 0:03:00.4]} 3. c3 {[%clk 0:03:01.6]} 3... dxc3 {[%clk 0:03:01.3]} 4.
Nxc3 {[%clk 0:03:02.1]} 4... Nc6 {[%clk 0:03:02.1]} 5. f4 {[%clk 0:03:02.7]}
5... e6 {[%clk 0:03:02.1]} 6. Nf3 {[%clk 0:03:03.3]} 6... a6 {[%clk 0:03:00.3]}
7. Bd3 {[%clk 0:03:03.9]} 7... b5 {[%clk 0:02:59.6]} 8. O-O {[%clk 0:03:04.8]}
8... Bb7 {[%clk 0:03:00.1]} 9. Qe1 {[%clk 0:03:05]} 9... Nge7 {[%clk 0:02:57]}
10. Be3 {[%clk 0:03:05.1]} 10... Ng6 {[%clk 0:02:52.8]} 11. Rd1 {[%clk
0:02:56.5]} 11... Be7 {[%clk 0:02:51.9]} 12. f5 {[%clk 0:02:53.3]} 12... Nge5
{[%clk 0:02:49.4]} 13. fxe6 {[%clk 0:02:48.6]} 13... fxe6 {[%clk 0:02:42.1]} 14.
Nxe5 {[%clk 0:02:29.3]} 14... Nxe5 {[%clk 0:02:43]} 15. Qg3 {[%clk 0:02:26.6]}
15... Bf6 {[%clk 0:02:33.1]} 16. Rxf6 {[%clk 0:02:14.8]} 16... gxf6 {[%clk
0:02:05.9]} 17. Qg7 {[%clk 0:02:14]} 17... Rf8 {[%clk 0:01:30.1]} 18. Bc5 {[%clk
0:02:10.4]} 18... Ng6 {[%clk 0:01:04.7]} 19. Qxh7 {[%clk 0:01:53.2]} 19... Qc7
{[%clk 0:00:41.1]} 20. Qxg6+ {[%clk 0:01:51.2]} 20... Kd8 {[%clk 0:00:29.9]} 21.
Bxf8 {[%clk 0:01:50.6]} 21... Qb6+ {[%clk 0:00:29.7]} 22. Kh1 {[%clk 0:01:49.9]}
22... Kc7 {[%clk 0:00:30.6]} 23. Qxf6 {[%clk 0:01:39.8]} 23... Qe3 {[%clk
0:00:24.8]} 24. Qe5+ {[%clk 0:01:23.3]} 24... Kd8 {[%clk 0:00:20.6]} 25. Bc5
{[%clk 0:01:17.5]} 25... Qh6 {[%clk 0:00:14.3]} 26. Rf1 {[%clk 0:01:09]} 1-0